[Event "Polofinale MCR junioru 2023"]
[Site "Czech Republic"]
[Date "2023.11.15"]
[Round "6.37"]
[White "Rucabado, Stefan"]
[Black "Brychta, David"]
[Result "1/2-1/2"]
[TimeControl "90 min per 40 moves + 15 min + 30 sec / move from move 1"]
[WhiteFideId "23730315"]
[BlackFideId "23742798"]
[WhiteElo "1873"]
[BlackElo "1230"]

1. e4 {[%clk 01:30:51]} {[%emt 00:00:07]} c5 {[%clk 01:30:58]} {[%emt
00:00:04]} 2. Nf3 {[%clk 01:31:06]} {[%emt 00:00:14]} Nc6 {[%clk 01:31:20]}
{[%emt 00:00:08]} 3. d4 {[%clk 01:31:03]} {[%emt 00:00:33]} cxd4 {[%clk
01:31:46]} {[%emt 00:00:05]} 4. Nxd4 {[%clk 01:31:28]} {[%emt 00:00:05]} d6
{[%clk 01:32:02]} {[%emt 00:00:15]} 5. c4 {[%clk 01:31:46]} {[%emt 00:00:12]}
g6 {[%clk 01:31:47]} {[%emt 00:00:45]} 6. Be2 {[%clk 01:32:02]} {[%emt
00:00:13]} Bg7 {[%clk 01:32:11]} {[%emt 00:00:06]} 7. Be3 {[%clk 01:32:27]}
{[%emt 00:00:05]} Nf6 {[%clk 01:32:39]} {[%emt 00:00:03]} 8. Nc3 {[%clk
01:32:50]} {[%emt 00:00:07]} O-O {[%clk 01:33:00]} {[%emt 00:00:09]} 9. O-O
{[%clk 01:33:13]} {[%emt 00:00:07]} Bd7 {[%clk 01:32:45]} {[%emt 00:00:45]} 10.
f3 {[%clk 01:33:36]} {[%emt 00:00:08]} a6 {[%clk 01:09:22]} {[%emt 00:23:53]}
11. Qd2 {[%clk 01:33:54]} {[%emt 00:00:12]} Re8 {[%clk 01:08:56]} {[%emt
00:00:56]} 12. Rac1 {[%clk 01:34:18]} {[%emt 00:00:05]} Rc8 {[%clk 01:08:49]}
{[%emt 00:00:38]} 13. Rfd1 {[%clk 01:34:41]} {[%emt 00:00:06]} Nxd4 {[%clk
00:57:14]} {[%emt 00:12:05]} 14. Bxd4 {[%clk 01:34:56]} {[%emt 00:00:14]} Be6
{[%clk 00:57:33]} {[%emt 00:00:11]} 15. b3 {[%clk 01:30:32]} {[%emt 00:04:55]}
Nd7 {[%clk 00:45:30]} {[%emt 00:12:34]} 16. Bxg7 {[%clk 01:12:19]} {[%emt
00:18:43]} Kxg7 {[%clk 00:44:01]} {[%emt 00:01:59]} 17. Qd4+ {[%clk 01:12:43]}
{[%emt 00:00:05]} f6 {[%clk 00:44:08]} {[%emt 00:00:22]} 18. b4 {[%clk
01:12:48]} {[%emt 00:00:25]} Qb6 {[%clk 00:38:54]} {[%emt 00:05:45]} 19. a3
{[%clk 00:58:24]} {[%emt 00:14:54]} Bxc4 {[%clk 00:36:19]} {[%emt 00:03:04]} 20.
Bxc4 {[%clk 00:56:42]} {[%emt 00:02:13]} Rxc4 {[%clk 00:36:32]} {[%emt
00:00:17]} 21. Qxb6 {[%clk 00:57:06]} {[%emt 00:00:06]} Nxb6 {[%clk 00:36:59]}
{[%emt 00:00:03]} 22. Nd5 {[%clk 00:57:17]} {[%emt 00:00:18]} Rxc1 {[%clk
00:36:56]} {[%emt 00:00:33]} 23. Rxc1 {[%clk 00:57:43]} {[%emt 00:00:05]} Nxd5
{[%clk 00:37:15]} {[%emt 00:00:11]} 24. exd5 {[%clk 00:58:08]} {[%emt
00:00:05]} Kf7 {[%clk 00:37:18]} {[%emt 00:00:27]} 25. Rc7 {[%clk 00:58:06]}
{[%emt 00:00:31]} Rb8 {[%clk 00:37:35]} {[%emt 00:00:14]} 26. a4 {[%clk
00:58:04]} {[%emt 00:00:33]} Ke8 {[%clk 00:37:29]} {[%emt 00:00:36]} 27. b5
{[%clk 00:58:22]} {[%emt 00:00:12]} axb5 {[%clk 00:37:32]} {[%emt 00:00:27]} 28.
axb5 {[%clk 00:58:47]} {[%emt 00:00:05]} b6 {[%clk 00:37:33]} {[%emt 00:00:29]}
29. Kf2 {[%clk 00:58:58]} {[%emt 00:00:18]} f5 {[%clk 00:37:15]} {[%emt
00:00:49]} 30. Ke3 {[%clk 00:59:16]} {[%emt 00:00:12]} Kf7 {[%clk 00:37:34]}
{[%emt 00:00:12]} 31. h4 {[%clk 00:59:02]} {[%emt 00:00:44]} h6 {[%clk
00:37:11]} {[%emt 00:00:53]} 32. f4 {[%clk 00:57:54]} {[%emt 00:01:38]} Kf6
{[%clk 00:37:27]} {[%emt 00:00:14]} 33. Kf3 {[%clk 00:58:07]} {[%emt 00:00:16]}
h5 {[%clk 00:37:02]} {[%emt 00:00:56]} 34. Ke3 {[%clk 00:58:03]} {[%emt
00:00:34]} Kf7 {[%clk 00:22:45]} {[%emt 00:14:47]} 1/2-1/2

[Event "Polofinale MCR junioru 2023"]
[Site "Czech Republic"]
[Date "2023.11.15"]
[Round "6.38"]
[White "Striz, Tadeas"]
[Black "Hampl, David"]
[Result "0-1"]
[TimeControl "90 min per 40 moves + 15 min + 30 sec / move from move 1"]
[WhiteFideId "23723530"]
[BlackFideId "398802"]
[WhiteElo "1371"]
[BlackElo "1801"]

1. e4 {[%clk 01:30:57]} {[%emt 00:00:02]} c6 {[%clk 01:30:56]} {[%emt
00:00:05]} 2. d4 {[%clk 01:31:18]} {[%emt 00:00:09]} d5 {[%clk 01:31:21]}
{[%emt 00:00:05]} 3. exd5 {[%clk 01:31:37]} {[%emt 00:00:11]} cxd5 {[%clk
01:31:42]} {[%emt 00:00:09]} 4. Bd3 {[%clk 01:31:54]} {[%emt 00:00:12]} Nc6
{[%clk 01:31:42]} {[%emt 00:00:31]} 5. c3 {[%clk 01:32:14]} {[%emt 00:00:10]}
Nf6 {[%clk 01:31:52]} {[%emt 00:00:20]} 6. h3 {[%clk 01:32:32]} {[%emt
00:00:12]} e6 {[%clk 01:29:20]} {[%emt 00:03:02]} 7. Bf4 {[%clk 01:32:53]}
{[%emt 00:00:09]} Bd6 {[%clk 01:29:25]} {[%emt 00:00:24]} 8. Bxd6 {[%clk
01:33:22]} {[%emt 00:00:02]} Qxd6 {[%clk 01:29:49]} {[%emt 00:00:06]} 9. Nf3
{[%clk 01:33:28]} {[%emt 00:00:23]} O-O {[%clk 01:28:19]} {[%emt 00:02:00]} 10.
Nbd2 {[%clk 01:33:00]} {[%emt 00:00:58]} Rb8 {[%clk 01:19:33]} {[%emt
00:09:16]} 11. a4 {[%clk 01:30:32]} {[%emt 00:02:57]} Re8 {[%clk 01:16:33]}
{[%emt 00:03:31]} 12. O-O {[%clk 01:29:26]} {[%emt 00:01:36]} e5 {[%clk
01:14:57]} {[%emt 00:02:05]} 13. dxe5 {[%clk 01:26:59]} {[%emt 00:02:56]} Nxe5
{[%clk 01:14:55]} {[%emt 00:00:32]} 14. Nxe5 {[%clk 01:27:19]} {[%emt
00:00:10]} Qxe5 {[%clk 01:13:09]} {[%emt 00:02:16]} 15. Re1 {[%clk 01:23:04]}
{[%emt 00:04:45]} Qf4 {[%clk 01:08:40]} {[%emt 00:04:58]} 16. Rxe8+ {[%clk
01:08:48]} {[%emt 00:14:46]} Nxe8 {[%clk 01:09:08]} {[%emt 00:00:03]} 17. Qc2
{[%clk 01:08:48]} {[%emt 00:00:30]} Nf6 {[%clk 01:07:43]} {[%emt 00:01:55]} 18.
Re1 {[%clk 01:07:40]} {[%emt 00:01:38]} Bd7 {[%clk 01:06:10]} {[%emt 00:02:04]}
19. Nf3 {[%clk 01:03:33]} {[%emt 00:04:37]} Bxa4 {[%clk 00:53:53]} {[%emt
00:12:48]} 20. b3 {[%clk 01:01:43]} {[%emt 00:02:20]} Bd7 {[%clk 00:52:56]}
{[%emt 00:01:26]} 21. Ne5 {[%clk 01:00:24]} {[%emt 00:01:49]} Re8 {[%clk
00:48:48]} {[%emt 00:04:38]} 22. Nf3 {[%clk 00:58:25]} {[%emt 00:02:29]} Rxe1+
{[%clk 00:45:29]} {[%emt 00:03:49]} 23. Nxe1 {[%clk 00:58:53]} {[%emt
00:00:02]} g6 {[%clk 00:44:53]} {[%emt 00:01:07]} 24. Qe2 {[%clk 00:55:37]}
{[%emt 00:03:46]} Ne4 {[%clk 00:42:23]} {[%emt 00:03:00]} 25. c4 {[%clk
00:52:38]} {[%emt 00:03:30]} Bc6 {[%clk 00:41:15]} {[%emt 00:01:38]} 26. Nf3
{[%clk 00:50:30]} {[%emt 00:02:38]} dxc4 {[%clk 00:39:25]} {[%emt 00:02:21]} 27.
Bxc4 {[%clk 00:49:51]} {[%emt 00:01:08]} Nd6 {[%clk 00:37:57]} {[%emt
00:01:58]} 28. Ne5 {[%clk 00:46:39]} {[%emt 00:03:41]} Be4 {[%clk 00:33:37]}
{[%emt 00:04:52]} 29. Nd3 {[%clk 00:40:52]} {[%emt 00:06:18]} Qg5 {[%clk
00:28:45]} {[%emt 00:05:21]} 30. Ne1 {[%clk 00:39:19]} {[%emt 00:02:03]} Bc6
{[%clk 00:26:14]} {[%emt 00:03:01]} 31. Qc2 {[%clk 00:31:51]} {[%emt 00:07:56]}
Nxc4 {[%clk 00:25:49]} {[%emt 00:00:57]} 32. bxc4 {[%clk 00:32:20]} {[%emt
00:00:02]} a5 {[%clk 00:25:20]} {[%emt 00:01:00]} 33. Qc3 {[%clk 00:31:07]}
{[%emt 00:01:42]} a4 {[%clk 00:23:58]} {[%emt 00:01:52]} 34. Kh2 {[%clk
00:28:26]} {[%emt 00:03:10]} Qf4+ {[%clk 00:21:32]} {[%emt 00:02:55]} 35. Kg1
{[%clk 00:28:39]} {[%emt 00:00:18]} Qe4 {[%clk 00:21:33]} {[%emt 00:00:29]} 36.
f3 {[%clk 00:25:26]} {[%emt 00:03:44]} Qb1 {[%clk 00:21:00]} {[%emt 00:01:02]}
37. Qe5 {[%clk 00:24:59]} {[%emt 00:00:57]} Qb6+ {[%clk 00:17:15]} {[%emt
00:04:10]} 38. Kf1 {[%clk 00:24:30]} {[%emt 00:01:06]} Qb4 {[%clk 00:16:27]}
{[%emt 00:01:17]} 39. Qb8+ {[%clk 00:24:26]} {[%emt 00:00:34]} Qf8 {[%clk
00:16:38]} {[%emt 00:00:20]} 40. Qxf8+ {[%clk 00:21:15]} {[%emt 00:03:41]} Kxf8
{[%clk 00:17:05]} {[%emt 00:00:03]} 41. Ke2 {[%clk 00:20:15]} {[%emt 00:01:30]}
b5 {[%clk 00:15:37]} {[%emt 00:01:59]} 42. cxb5 {[%clk 00:20:00]} {[%emt
00:00:46]} Bxb5+ {[%clk 00:16:05]} {[%emt 00:00:01]} 43. Ke3 {[%clk 00:19:58]}
{[%emt 00:00:31]} Ke7 {[%clk 00:16:12]} {[%emt 00:00:23]} 44. g3 {[%clk
00:20:13]} {[%emt 00:00:16]} Kd6 {[%clk 00:15:59]} {[%emt 00:00:43]} 45. Kd4
{[%clk 00:20:15]} {[%emt 00:00:27]} Bd7 {[%clk 00:15:05]} {[%emt 00:01:24]} 46.
h4 {[%clk 00:07:04]} {[%emt 00:13:42]} a3 {[%clk 00:14:37]} {[%emt 00:00:57]}
47. Nc2 {[%clk 00:06:53]} {[%emt 00:00:41]} a2 {[%clk 00:14:52]} {[%emt
00:00:16]} 48. g4 {[%clk 00:05:55]} {[%emt 00:01:28]} Ba4 {[%clk 00:13:43]}
{[%emt 00:01:39]} 49. Na1 {[%clk 00:06:16]} {[%emt 00:00:09]} Bd1 {[%clk
00:13:46]} {[%emt 00:00:26]} 50. h5 {[%clk 00:05:52]} {[%emt 00:00:54]} gxh5
{[%clk 00:12:58]} {[%emt 00:01:19]} 51. gxh5 {[%clk 00:06:04]} {[%emt
00:00:18]} Bxf3 {[%clk 00:13:09]} {[%emt 00:00:18]} 0-1

[Event "Polofinale MCR junioru 2023"]
[Site "Czech Republic"]
[Date "2023.11.15"]
[Round "6.39"]
[White "Vasinek, Martin"]
[Black "Sklar, Petr"]
[Result "1/2-1/2"]
[TimeControl "90 min per 40 moves + 15 min + 30 sec / move from move 1"]
[WhiteFideId "392200"]
[BlackFideId "23731141"]
[WhiteElo "1987"]
[BlackElo "1160"]

1. d4 {[%clk 01:30:58]} d6 {[%clk 01:30:53]} {[%emt 00:00:08]} 2. Nf3 {[%clk
01:31:17]} {[%emt 00:00:11]} Nd7 {[%clk 01:30:57]} {[%emt 00:00:26]} 3. c4
{[%clk 01:31:34]} {[%emt 00:00:13]} g6 {[%clk 01:29:50]} {[%emt 00:01:37]} 4.
Nc3 {[%clk 01:31:00]} {[%emt 00:01:04]} Bg7 {[%clk 01:29:57]} {[%emt 00:00:23]}
5. e4 {[%clk 01:31:15]} {[%emt 00:00:16]} e5 {[%clk 01:29:26]} {[%emt
00:01:01]} 6. Be3 {[%clk 01:22:49]} {[%emt 00:08:55]} exd4 {[%clk 01:25:28]}
{[%emt 00:04:28]} 7. Nxd4 {[%clk 01:23:11]} {[%emt 00:00:07]} Ngf6 {[%clk
01:24:19]} {[%emt 00:01:38]} 8. Be2 {[%clk 01:22:43]} {[%emt 00:00:58]} Ne5
{[%clk 01:22:53]} {[%emt 00:01:57]} 9. h3 {[%clk 01:22:00]} {[%emt 00:01:12]}
Be6 {[%clk 01:18:51]} {[%emt 00:04:33]} 10. f4 {[%clk 01:18:19]} {[%emt
00:04:10]} Nc6 {[%clk 01:11:27]} {[%emt 00:07:54]} 11. O-O {[%clk 01:16:44]}
{[%emt 00:02:05]} Nxd4 {[%clk 01:03:14]} {[%emt 00:08:44]} 12. Bxd4 {[%clk
01:16:48]} {[%emt 00:00:25]} c5 {[%clk 01:02:57]} {[%emt 00:00:47]} 13. Be3
{[%clk 01:16:26]} {[%emt 00:00:52]} Qb6 {[%clk 01:02:07]} {[%emt 00:01:20]} 14.
Qa4+ {[%clk 01:11:42]} {[%emt 00:05:15]} Bd7 {[%clk 01:00:27]} {[%emt
00:02:09]} 15. Qc2 {[%clk 01:12:01]} {[%emt 00:00:12]} O-O {[%clk 00:56:22]}
{[%emt 00:04:34]} 16. e5 {[%clk 00:56:40]} {[%emt 00:15:51]} Bf5 {[%clk
00:52:01]} {[%emt 00:04:51]} 17. Bd3 {[%clk 00:44:40]} {[%emt 00:12:30]} Bxd3
{[%clk 00:50:55]} {[%emt 00:01:35]} 18. Qxd3 {[%clk 00:45:09]} dxe5 {[%clk
00:50:55]} {[%emt 00:00:32]} 19. fxe5 {[%clk 00:45:28]} {[%emt 00:00:11]} Rad8
{[%clk 00:50:04]} {[%emt 00:01:21]} 20. Qc2 {[%clk 00:43:02]} {[%emt 00:02:56]}
Nd7 {[%clk 00:47:00]} {[%emt 00:03:33]} 21. Nd5 {[%clk 00:42:28]} {[%emt
00:01:04]} Qe6 {[%clk 00:45:08]} {[%emt 00:02:21]} 22. Bg5 {[%clk 00:41:55]}
{[%emt 00:01:04]} f6 {[%clk 00:36:12]} {[%emt 00:09:26]} 23. exf6 {[%clk
00:40:46]} {[%emt 00:01:39]} Bxf6 {[%clk 00:31:58]} {[%emt 00:04:44]} 24. Rfe1
{[%clk 00:33:23]} {[%emt 00:07:53]} Qd6 {[%clk 00:28:15]} {[%emt 00:04:12]} 25.
Bxf6 {[%clk 00:28:44]} {[%emt 00:05:09]} Nxf6 {[%clk 00:27:52]} {[%emt
00:00:53]} 26. Rad1 {[%clk 00:28:52]} {[%emt 00:00:22]} Nxd5 {[%clk 00:27:15]}
{[%emt 00:01:07]} 27. Rxd5 {[%clk 00:26:01]} {[%emt 00:03:20]} Qf6 {[%clk
00:27:00]} {[%emt 00:00:45]} 28. Rde5 {[%clk 00:23:59]} {[%emt 00:02:33]} Qd6
{[%clk 00:21:30]} {[%emt 00:05:59]} 29. Qe4 {[%clk 00:16:37]} {[%emt 00:07:52]}
Rf7 {[%clk 00:16:09]} {[%emt 00:05:51]} 30. b3 {[%clk 00:12:10]} {[%emt
00:04:58]} b6 {[%clk 00:15:29]} {[%emt 00:01:11]} 31. Qe2 {[%clk 00:09:28]}
{[%emt 00:03:12]} Rdd7 {[%clk 00:13:54]} {[%emt 00:02:05]} 32. Rd5 {[%clk
00:09:11]} {[%emt 00:00:47]} Qc7 {[%clk 00:13:15]} {[%emt 00:01:10]} 33. Qd3
{[%clk 00:06:37]} {[%emt 00:03:01]} Rxd5 {[%clk 00:11:29]} {[%emt 00:02:18]} 34.
Qxd5 {[%clk 00:06:43]} {[%emt 00:00:24]} Qd7 {[%clk 00:11:52]} {[%emt
00:00:07]} 35. Qxd7 {[%clk 00:06:40]} {[%emt 00:00:32]} Rxd7 {[%clk 00:12:16]}
{[%emt 00:00:06]} 36. Kf2 {[%clk 00:06:58]} {[%emt 00:00:12]} Rd2+ {[%clk
00:12:05]} {[%emt 00:00:40]} 37. Re2 {[%clk 00:07:23]} {[%emt 00:00:06]} Rxe2+
{[%clk 00:11:44]} {[%emt 00:00:52]} 38. Kxe2 {[%clk 00:07:52]} Kf7 {[%clk
00:12:04]} {[%emt 00:00:10]} 39. Ke3 {[%clk 00:08:12]} {[%emt 00:00:10]} Ke6
{[%clk 00:12:25]} {[%emt 00:00:09]} 40. Ke4 {[%clk 00:07:25]} {[%emt 00:01:17]}
h6 {[%clk 00:11:06]} {[%emt 00:01:49]} 41. h4 {[%clk 00:05:51]} {[%emt
00:02:03]} h5 {[%clk 00:10:45]} {[%emt 00:00:52]} 42. g3 {[%clk 00:05:42]}
{[%emt 00:00:39]} a6 {[%clk 00:10:26]} {[%emt 00:00:50]} 43. a3 {[%clk
00:05:44]} {[%emt 00:00:28]} a5 {[%clk 00:08:07]} {[%emt 00:02:48]} 44. a4
{[%clk 00:06:05]} {[%emt 00:00:09]} Kd6 {[%clk 00:07:53]} {[%emt 00:00:44]}
1/2-1/2

[Event "Polofinale MCR junioru 2023"]
[Site "Czech Republic"]
[Date "2023.11.16"]
[Round "7.1"]
[White "Hak, David"]
[Black "Bohacek, Jan Andrej"]
[Result "0-1"]
[TimeControl "90 min per 40 moves + 15 min + 30 sec / move from move 1"]
[WhiteFideId "377007"]
[BlackFideId "23727357"]
[WhiteElo "2253"]
[BlackElo "2066"]

1. e4 {[%clk 01:28:48]} {[%emt 00:02:11]} c6 {[%clk 01:30:54]} {[%emt
00:00:06]} 2. d4 {[%clk 01:29:07]} {[%emt 00:00:11]} d5 {[%clk 01:31:19]}
{[%emt 00:00:05]} 3. exd5 {[%clk 01:29:30]} {[%emt 00:00:08]} cxd5 {[%clk
01:31:41]} {[%emt 00:00:07]} 4. Bd3 {[%clk 01:29:51]} {[%emt 00:00:10]} Nc6
{[%clk 01:31:50]} {[%emt 00:00:21]} 5. c3 {[%clk 01:30:08]} {[%emt 00:00:13]}
Nf6 {[%clk 01:32:15]} {[%emt 00:00:05]} 6. Bf4 {[%clk 01:30:29]} {[%emt
00:00:09]} Bg4 {[%clk 01:32:39]} {[%emt 00:00:05]} 7. Qb3 {[%clk 01:30:49]}
{[%emt 00:00:10]} Qd7 {[%clk 01:33:04]} {[%emt 00:00:06]} 8. Nd2 {[%clk
01:27:22]} {[%emt 00:03:56]} e6 {[%clk 01:33:14]} {[%emt 00:00:21]} 9. Ngf3
{[%clk 01:27:29]} {[%emt 00:00:22]} Bd6 {[%clk 01:32:45]} {[%emt 00:00:59]} 10.
Bg5 {[%clk 01:17:40]} {[%emt 00:10:19]} Qc7 {[%clk 01:20:05]} {[%emt 00:13:10]}
11. O-O {[%clk 01:16:26]} {[%emt 00:01:44]} Bh5 {[%clk 01:04:30]} {[%emt
00:16:05]} 12. Rfe1 {[%clk 01:15:00]} {[%emt 00:01:55]} O-O {[%clk 01:02:46]}
{[%emt 00:02:15]} 13. Bxf6 {[%clk 00:53:21]} {[%emt 00:22:10]} gxf6 {[%clk
01:02:54]} {[%emt 00:00:21]} 14. g3 {[%clk 00:51:26]} {[%emt 00:02:25]} Bxf3
{[%clk 00:56:44]} {[%emt 00:06:40]} 15. Nxf3 {[%clk 00:51:44]} {[%emt
00:00:13]} f5 {[%clk 00:54:07]} {[%emt 00:03:07]} 16. Qd1 {[%clk 00:49:57]}
{[%emt 00:02:17]} Be7 {[%clk 00:42:29]} {[%emt 00:12:08]} 17. Qd2 {[%clk
00:43:24]} {[%emt 00:07:03]} Kh8 {[%clk 00:35:37]} {[%emt 00:07:21]} 18. Kh1
{[%clk 00:38:32]} {[%emt 00:05:22]} Rg8 {[%clk 00:31:08]} {[%emt 00:05:00]} 19.
Rg1 {[%clk 00:33:13]} {[%emt 00:05:48]} Bd6 {[%clk 00:22:32]} {[%emt 00:09:06]}
20. Qh6 {[%clk 00:31:13]} {[%emt 00:02:31]} Rg6 {[%clk 00:20:52]} {[%emt
00:02:10]} 21. Qh5 {[%clk 00:31:41]} {[%emt 00:00:01]} Rag8 {[%clk 00:20:08]}
{[%emt 00:01:14]} 22. g4 {[%clk 00:27:18]} {[%emt 00:04:54]} Rxg4 {[%clk
00:08:52]} {[%emt 00:11:46]} 23. Rxg4 {[%clk 00:27:29]} {[%emt 00:00:19]} Rxg4
{[%clk 00:09:11]} {[%emt 00:00:10]} 24. Ng5 {[%clk 00:27:40]} {[%emt 00:00:20]}
Rxg5 {[%clk 00:09:22]} {[%emt 00:00:19]} 25. Qxg5 {[%clk 00:28:02]} {[%emt
00:00:08]} Ne7 {[%clk 00:08:12]} {[%emt 00:01:39]} 26. Rg1 {[%clk 00:19:55]}
{[%emt 00:08:38]} Ng6 {[%clk 00:08:29]} {[%emt 00:00:13]} 27. h4 {[%clk
00:17:11]} {[%emt 00:03:14]} Be7 {[%clk 00:07:19]} {[%emt 00:01:40]} 28. Qg3
{[%clk 00:17:06]} {[%emt 00:00:34]} Bd6 {[%clk 00:07:09]} {[%emt 00:00:40]} 29.
Qg5 {[%clk 00:11:48]} {[%emt 00:05:48]} Be7 {[%clk 00:07:28]} {[%emt 00:00:12]}
30. Qh6 {[%clk 00:11:23]} {[%emt 00:00:55]} Bf8 {[%clk 00:07:15]} {[%emt
00:00:42]} 31. Qe3 {[%clk 00:06:27]} {[%emt 00:05:26]} Qd8 {[%clk 00:06:58]}
{[%emt 00:00:47]} 32. Qg3 {[%clk 00:01:51]} {[%emt 00:05:06]} Bd6 {[%clk
00:06:54]} {[%emt 00:00:34]} 33. Qg5 {[%clk 00:01:51]} {[%emt 00:00:30]} Be7
{[%clk 00:06:53]} {[%emt 00:00:31]} 34. Qh6 {[%clk 00:01:21]} {[%emt 00:01:00]}
Bf8 {[%clk 00:06:55]} {[%emt 00:00:28]} 35. Qg5 {[%clk 00:01:04]} {[%emt
00:00:47]} Be7 {[%clk 00:06:36]} {[%emt 00:00:49]} 36. Qe3 {[%clk 00:01:09]}
{[%emt 00:00:25]} Bd6 {[%clk 00:01:22]} {[%emt 00:05:45]} 37. Kg2 {[%clk
00:00:57]} {[%emt 00:00:42]} Qxh4 {[%clk 00:01:07]} {[%emt 00:00:44]} 38. Kf1
{[%clk 00:01:12]} {[%emt 00:00:15]} Bf4 {[%clk 00:00:49]} {[%emt 00:00:49]} 39.
Qf3 {[%clk 00:01:17]} {[%emt 00:00:25]} Bd6 {[%clk 00:00:46]} {[%emt 00:00:32]}
40. Ke1 {[%clk 00:00:53]} {[%emt 00:00:54]} Nf4 {[%clk 00:00:46]} {[%emt
00:00:30]} 41. Kd2 {[%clk 00:12:36]} {[%emt 00:04:16]} Nh3 {[%clk 00:10:47]}
{[%emt 00:06:00]} 42. Rf1 {[%clk 00:12:17]} {[%emt 00:00:49]} Ng5 {[%clk
00:10:30]} {[%emt 00:00:48]} 43. Qe2 {[%clk 00:11:48]} {[%emt 00:00:58]} Qf4+
{[%clk 00:04:40]} {[%emt 00:06:20]} 44. Kc2 {[%clk 00:12:07]} {[%emt 00:00:11]}
Nh3 {[%clk 00:04:10]} {[%emt 00:01:00]} 45. Qh5 {[%clk 00:09:18]} {[%emt
00:03:19]} Ng5 {[%clk 00:04:11]} {[%emt 00:00:29]} 46. Kb1 {[%clk 00:07:33]}
{[%emt 00:02:16]} Qg4 {[%clk 00:02:55]} {[%emt 00:01:44]} 47. Qh6 {[%clk
00:05:04]} {[%emt 00:03:01]} Kg8 {[%clk 00:01:44]} {[%emt 00:01:40]} 48. Ka1
{[%clk 00:02:08]} {[%emt 00:03:27]} Bf4 {[%clk 00:01:24]} {[%emt 00:00:49]} 49.
Qf6 {[%clk 00:00:43]} {[%emt 00:01:56]} Qf3 {[%clk 00:01:21]} {[%emt 00:00:33]}
50. Bb5 {[%clk 00:00:47]} {[%emt 00:00:26]} a6 {[%clk 00:01:30]} {[%emt
00:00:22]} 51. Bd7 {[%clk 00:00:37]} {[%emt 00:00:39]} Qg2 {[%clk 00:01:21]}
{[%emt 00:00:38]} 52. Rb1 {[%clk 00:00:57]} {[%emt 00:00:10]} Qxf2 {[%clk
00:01:31]} {[%emt 00:00:20]} 53. Bc8 {[%clk 00:01:11]} {[%emt 00:00:17]} h5
{[%clk 00:01:36]} {[%emt 00:00:25]} 54. Bxb7 {[%clk 00:00:42]} {[%emt
00:00:59]} h4 {[%clk 00:01:56]} {[%emt 00:00:09]} 55. c4 {[%clk 00:00:47]}
{[%emt 00:00:25]} dxc4 {[%clk 00:01:42]} {[%emt 00:00:45]} 56. d5 {[%clk
00:01:08]} {[%emt 00:00:09]} exd5 {[%clk 00:01:19]} {[%emt 00:00:53]} 57. Bxd5
{[%clk 00:01:30]} {[%emt 00:00:07]} Be3 {[%clk 00:00:45]} {[%emt 00:01:02]} 58.
Bxc4 {[%clk 00:01:04]} {[%emt 00:00:58]} Qf4 {[%clk 00:00:45]} {[%emt
00:00:30]} 59. Qxa6 {[%clk 00:00:56]} {[%emt 00:00:39]} h3 {[%clk 00:00:48]}
{[%emt 00:00:27]} 60. Rf1 {[%clk 00:01:03]} {[%emt 00:00:22]} Qe4 {[%clk
00:00:35]} {[%emt 00:00:44]} 61. Bd3 {[%clk 00:00:42]} {[%emt 00:00:51]} Qg2
{[%clk 00:00:47]} {[%emt 00:00:18]} 62. Qc8+ {[%clk 00:00:54]} {[%emt
00:00:19]} Kg7 {[%clk 00:01:01]} {[%emt 00:00:15]} 63. Qxf5 {[%clk 00:00:40]}
{[%emt 00:00:43]} Bd4 {[%clk 00:01:03]} {[%emt 00:00:28]} 64. Qb5 {[%clk
00:00:38]} {[%emt 00:00:34]} h2 {[%clk 00:00:59]} {[%emt 00:00:33]} 65. Bb1
{[%clk 00:00:39]} {[%emt 00:00:29]} Bf6 {[%clk 00:00:37]} {[%emt 00:00:50]} 0-1

[Event "Polofinale MCR junioru 2023"]
[Site "Czech Republic"]
[Date "2023.11.16"]
[Round "7.2"]
[White "Pavlis, Matej"]
[Black "Jun, Rudolf"]
[Result "1/2-1/2"]
[TimeControl "90 min per 40 moves + 15 min + 30 sec / move from move 1"]
[WhiteFideId "23735767"]
[BlackFideId "376612"]
[WhiteElo "1974"]
[BlackElo "2260"]

1. Nf3 {[%clk 01:30:57]} {[%emt 00:00:02]} Nf6 {[%clk 01:30:23]} {[%emt
00:00:37]} 2. c4 {[%clk 01:31:22]} {[%emt 00:00:06]} c5 {[%clk 01:30:04]}
{[%emt 00:00:48]} 3. g3 {[%clk 01:31:30]} {[%emt 00:00:23]} g6 {[%clk
01:29:59]} {[%emt 00:00:35]} 4. Nc3 {[%clk 01:28:52]} {[%emt 00:03:07]} Nc6
{[%clk 01:30:12]} {[%emt 00:00:17]} 5. Bg2 {[%clk 01:28:43]} {[%emt 00:00:40]}
Bg7 {[%clk 01:30:32]} {[%emt 00:00:10]} 6. O-O {[%clk 01:28:48]} {[%emt
00:00:25]} O-O {[%clk 01:30:54]} {[%emt 00:00:08]} 7. d4 {[%clk 01:26:50]}
{[%emt 00:02:28]} cxd4 {[%clk 01:28:09]} {[%emt 00:03:15]} 8. Nxd4 {[%clk
01:27:11]} {[%emt 00:00:08]} a6 {[%clk 01:27:01]} {[%emt 00:01:38]} 9. h3
{[%clk 01:25:48]} {[%emt 00:01:53]} Qc7 {[%clk 01:24:09]} {[%emt 00:03:22]} 10.
Be3 {[%clk 01:19:31]} {[%emt 00:06:48]} Nxd4 {[%clk 01:17:59]} {[%emt
00:06:40]} 11. Qxd4 {[%clk 01:19:34]} {[%emt 00:00:26]} d6 {[%clk 01:17:52]}
{[%emt 00:00:38]} 12. Rac1 {[%clk 01:14:37]} {[%emt 00:05:27]} Be6 {[%clk
01:14:44]} {[%emt 00:03:38]} 13. b3 {[%clk 01:12:09]} {[%emt 00:02:57]} Rac8
{[%clk 01:07:19]} {[%emt 00:07:56]} 14. Qd2 {[%clk 01:10:40]} {[%emt 00:01:58]}
Rfe8 {[%clk 01:03:58]} {[%emt 00:03:51]} 15. Rfd1 {[%clk 01:08:50]} {[%emt
00:02:20]} h5 {[%clk 00:48:31]} {[%emt 00:15:57]} 16. Bd4 {[%clk 01:01:50]}
{[%emt 00:07:30]} Qb8 {[%clk 00:38:59]} {[%emt 00:10:02]} 1/2-1/2